bitfinex/quotes_ETHUSD_20250604
["timestamp","ask_amount","ask_price","bid_price","bid_amount"]
[1749058506691,0.02,2635.9,2635.8,29.78134]
[1749058506881,0.02,2635.9,2635.8,30.76418158]
[1749058507315,0.02,2635.9,2635.8,38.05414823]
[1749058507583,0.02,2635.9,2635.8,51.28914823]
[1749058508178,0.02,2635.9,2635.8,30.97914158]
[1749058508384,0.02,2635.9,2635.8,39.608597]
[1749058508688,0.02,2635.9,2635.8,38.324367]
[1749058508998,0.02,2635.9,2635.8,40.57762428]
[1749058509225,0.02,2635.9,2635.8,38.680667]
[1749058509441,0.02,2635.9,2635.8,30.414667]
[1749058509724,0.02,2635.9,2635.8,41.7221337]
[1749058509913,0.02,2635.9,2635.8,43.61909098]
[1749058510310,0.02,2635.9,2635.8,25.7221337]
[1749058510794,0.02,2635.9,2635.8,27.61909098]
[1749058510990,0.02,2635.9,2635.8,17.4561337]
[1749058511226,0.02,2635.9,2635.8,25.7171337]
[1749058511425,0.02,2635.9,2635.8,27.61409098]
[1749058512449,0.02,2635.9,2635.8,43.61409098]
[1749058512797,0.00156415,2635.9,2635.8,43.61409098]
[1749058513618,0.00156415,2635.9,2635.8,41.7101337]
[1749058513828,0.00156415,2635.9,2635.8,33.4561337]
[1749058514140,0.00156415,2635.9,2635.8,39.6577667]
[1749058514535,0.00156415,2635.9,2635.8,44.74265298]
[1749058514708,0.00156415,2635.9,2635.8,51.91566235]
[1749058515120,0.00156415,2635.9,2635.8,48.64266235]
[1749058515340,0.00156415,2635.9,2635.8,46.74570507]
[1749058515645,3.90156415,2636.0,2635.9,19.51185331]
[1749058515843,3.90156415,2636.0,2635.9,21.30091856]
[1749058516056,3.90156415,2636.0,2635.9,21.65721856]
[1749058516352,3.19441778,2636.0,2635.9,21.65721856]
[1749058517209,3.19441778,2636.0,2635.9,28.13121856]
[1749058517444,3.19441778,2636.0,2635.9,33.48098812]
[1749058517659,3.19441778,2636.0,2635.9,21.59441625]
[1749058517953,3.19441778,2636.0,2635.9,35.53634956]
[1749058518307,3.19441778,2636.0,2635.9,29.06134956]
[1749058518503,3.19441778,2636.0,2635.9,35.53434956]
[1749058519557,3.19441778,2636.0,2635.9,36.08434956]
[1749058520694,3.19441778,2636.0,2635.9,29.785117]
[1749058520998,3.19441778,2636.0,2635.9,36.058714]
[1749058521181,3.19441778,2636.0,2635.9,37.95559931]
[1749058521388,3.19441778,2636.0,2635.9,27.99759931]
[1749058523222,2.57917619,2636.0,2635.9,27.99759931]
[1749058523719,2.57917619,2636.0,2635.9,19.633714]
[1749058523915,2.57917619,2636.0,2635.9,26.101714]
[1749058524612,2.57917619,2636.0,2635.9,27.99859931]
[1749058525590,0.02,2636.9,2636.4,16.0]
[1749058525999,0.02,2636.9,2636.6,16.0]
[1749058526200,0.02,2636.9,2636.0,16.0]
[1749058526408,0.02,2636.9,2636.1,6.461]
[1749058526611,1.3324,2636.8,2636.2,16.0]
[1749058527223,1.3324,2636.8,2636.3,6.462]
[1749058527422,2.1224,2636.8,2636.4,14.641]
[1749058527720,2.33664,2636.8,2636.5,1.769]
[1749058528319,1.2748,2636.7,2636.6,6.458]
[1749058529219,1.2748,2636.7,2636.6,1.769]
[1749058529623,2.0648,2636.7,2636.6,1.769]
[1749058529809,2.95460494,2636.7,2636.6,1.769]
[1749058530223,1.2174,2636.6,2636.4,8.179]
[1749058530529,8.39040937,2636.6,2636.5,1.769]
[1749058531126,8.39040937,2636.6,2636.4,8.179]
[1749058531297,8.50670937,2636.6,2636.5,1.769]
[1749058531498,9.5525248,2636.6,2636.5,1.769]
[1749058532205,1.2897,2636.5,2636.4,8.179]
[1749058532535,1.2897,2636.5,2636.4,9.948]
[1749058534150,1.2897,2636.5,2636.4,8.179]
[1749058534353,1.2897,2636.5,2636.4,9.948]
[1749058534638,1.2897,2636.5,2636.4,16.397]
[1749058535294,1.2897,2636.5,2636.4,16.394]
[1749058535494,2.13597094,2636.5,2636.4,8.179]
[1749058535734,2.13597094,2636.5,2636.4,9.948]
[1749058536253,2.13597094,2636.5,2636.4,8.179]
[1749058536527,2.13597094,2636.5,2636.4,9.948]
[1749058537031,1.39627094,2636.5,2634.3,2.09565647]
[1749058537339,1.39627094,2636.5,2634.4,2.852749]
[1749058537340,7.17300937,2635.7,2634.4,2.852749]
[1749058537495,1.2159,2635.6,2634.5,8.18]
[1749058537703,1.2159,2635.6,2634.6,22.45]
[1749058537919,1.2159,2635.5,2634.7,16.0]
[1749058538123,1.2159,2635.5,2634.7,10.0]
[1749058538454,1.2159,2635.5,2634.8,10.0]
[1749058538767,1.2159,2635.5,2634.8,4.580887]
[1749058538896,1.2159,2635.5,2634.9,10.0]
[1749058539230,1.2159,2635.5,2635.0,1.769]
[1749058539599,1.2159,2635.5,2635.1,3.3369]
[1749058539851,1.2159,2635.5,2635.2,6.445]
[1749058540401,1.2159,2635.5,2635.1,10.0]
[1749058540596,1.2159,2635.5,2635.3,10.0]
[1749058540801,1.2312,2636.1,2635.2,6.443]
[1749058540998,0.99212,2636.0,2635.2,6.443]
[1749058541542,1.2312,2635.9,2635.2,6.443]
[1749058541700,1.2443,2635.7,2635.2,6.443]
[1749058541900,1.2443,2635.7,2635.3,8.209]
[1749058542103,1.2443,2635.7,2635.4,8.21]
[1749058542300,2.08603094,2635.6,2635.5,8.21]
[1749058542543,2.08603094,2635.6,2635.5,1.769]
[1749058543107,1.272,2635.5,2634.4,0.51]
[1749058543343,1.272,2635.4,2634.6,24.207]
[1749058543711,1.272,2635.4,2634.6,8.207]
[1749058543907,1.272,2635.4,2634.6,25.8457]
[1749058544346,1.272,2635.4,2634.7,9.535449]
[1749058544533,1.272,2635.4,2634.8,10.0]
[1749058545010,1.272,2635.4,2634.8,3.321]
[1749058545219,1.272,2635.4,2634.8,2.51599]
[1749058545418,1.272,2635.4,2634.9,4.175626]
[1749058545617,1.272,2635.4,2634.9,2.276626]
[1749058545818,1.272,2635.4,2634.8,1.4027667]
[1749058546129,1.272,2635.4,2634.9,2.34]
[1749058550634,1.272,2635.4,2634.8,17.4027667]
[1749058550934,1.272,2635.4,2634.9,8.0587]
[1749058551129,1.272,2635.4,2634.6,17.769]
[1749058551343,1.272,2635.4,2634.7,18.401305]
[1749058551545,1.272,2635.4,2634.8,8.187]
[1749058552350,1.272,2635.4,2634.9,36.614593]
[1749058552666,1.272,2635.4,2635.0,8.719685]
[1749058552873,1.272,2635.4,2635.0,1.6904685]
[1749058553035,1.272,2635.4,2635.0,17.499098]
[1749058553237,1.272,2635.4,2635.1,10.0]
[1749058553485,1.272,2635.4,2635.0,20.778098]
[1749058553640,1.272,2635.4,2635.0,10.778098]
[1749058554632,1.272,2635.4,2635.0,10.0]
[1749058554860,1.47062,2636.0,2635.2,16.0]
[1749058555136,1.2685,2636.0,2635.3,8.18]
[1749058557139,1.2685,2636.0,2635.1,16.0]
[1749058557140,8.44670937,2635.5,2635.4,1.733]
[1749058557887,1.2737,2635.5,2635.4,1.733]
[1749058558888,8.44670937,2635.5,2635.4,1.733]
[1749058559031,9.29138031,2635.5,2635.4,1.733]
[1749058559966,1.2822,2635.4,2634.5,11.453]
[1749058560227,1.2822,2634.9,2634.6,1.733]
[1749058560335,7.17300937,2634.7,2634.6,1.733]
[1749058560545,8.01853031,2634.7,2634.6,1.733]
[1749058560845,7.17300937,2634.7,2634.6,1.733]
[1749058561380,8.45520937,2634.7,2634.6,1.733]
[1749058561742,1.2822,2634.7,2634.6,1.733]
[1749058563286,1.2822,2634.7,2634.5,11.453]
[1749058563494,1.2822,2634.7,2634.6,1.733]
[1749058563673,2.12772094,2634.7,2634.6,1.733]
[1749058565771,2.12772094,2634.7,2634.6,1.733]
[1749058567373,1.2822,2634.7,2634.6,1.733]
[1749058568773,1.2822,2634.7,2634.6,8.139]
[1749058569089,1.3319,2635.1,2634.6,8.139]
[1749058569584,1.3319,2635.1,2634.7,6.402]
[1749058569783,1.3319,2635.1,2634.8,8.136]
[1749058569947,17.77868288,2635.5,2634.8,8.136]
[1749058569948,7.17300937,2634.9,2634.8,8.136]
[1749058570143,8.48180937,2634.9,2634.5,11.453]
[1749058570346,1.3088,2634.8,2634.6,8.135]
[1749058571266,1.3088,2634.8,2634.6,1.734]
[1749058571474,1.3088,2634.8,2634.6,8.134]
[1749058571694,1.3088,2634.8,2634.5,11.453]
[1749058571875,7.17300937,2634.6,2634.5,11.453]
[1749058572211,1.8588,2634.5,2634.1,0.02]
[1749058572364,16.55,2634.1,2632.8,0.0655]
[1749058572565,1.3088,2633.3,2633.2,1.734]
[1749058572772,1.3088,2633.3,2633.2,8.147]
[1749058573287,1.3088,2635.0,2633.4,31.91825195]
[1749058573491,1.62496661,2635.0,2633.9,22.754333]
[1749058573675,1.62496661,2635.0,2634.1,46.198593]
[1749058573998,0.31600762,2634.9,2634.3,10.0]
[1749058574148,1.3088,2635.0,2634.4,1.38247132]
[1749058574348,1.3088,2635.0,2634.5,6.495]
[1749058574547,1.3088,2635.0,2634.6,1.38247132]
[1749058574782,1.3088,2635.0,2634.5,7.28274713]
[1749058574954,1.3088,2635.0,2634.6,16.0]
[1749058575822,7.17300937,2635.5,2634.6,16.0]
[1749058576113,16.02,2635.9,2634.7,1.30295232]
[1749058576114,1.2821,2635.4,2634.7,1.30295232]
[1749058576289,1.2821,2635.4,2634.8,1.73029523]
[1749058576485,1.2821,2635.4,2634.8,3.03324755]
[1749058576813,1.2821,2635.4,2634.9,16.0]
[1749058577178,1.2821,2635.4,2635.1,16.0]
[1749058577620,1.2821,2635.4,2635.2,9.92]
[1749058577975,7.17300937,2635.3,2635.2,8.186]
[1749058578176,8.01852031,2635.3,2635.2,9.92]
[1749058578673,0.84551094,2635.3,2635.2,9.92]
[1749058578876,1.2821,2635.4,2635.2,9.92]
[1749058579528,1.2821,2635.4,2635.2,8.186]
[1749058579830,8.45510937,2635.4,2635.3,1.734]
[1749058581033,24.45510937,2635.4,2635.3,1.734]
[1749058581323,8.45510937,2635.4,2635.3,1.734]
[1749058581728,9.30062031,2635.4,2635.3,1.734]
[1749058581892,25.85062031,2635.4,2635.3,1.734]
[1749058582094,1.2755,2635.2,2634.1,0.0655]
[1749058582295,7.17300937,2635.1,2634.2,8.206]
[1749058582605,7.17300937,2635.1,2634.3,8.209]
[1749058582917,1.2755,2635.2,2634.3,0.82745]
[1749058583083,1.208,2635.0,2634.4,8.208]
[1749058583279,1.208,2635.0,2634.5,8.206]
[1749058583485,1.208,2635.0,2634.6,8.207]
[1749058583684,1.208,2635.0,2634.7,1.734]
[1749058583883,0.83810094,2634.9,2633.7,16.0]
[1749058584203,0.83810094,2634.9,2633.9,16.0]
[1749058584404,1.208,2634.8,2633.9,16.0]
[1749058585178,1.208,2634.8,2633.9,1.89827595]
[1749058585509,16.84551094,2635.4,2634.3,16.0]
[1749058585510,1.2284,2635.3,2634.3,16.0]
[1749058585719,0.20739109,2635.2,2634.4,8.205]
[1749058586400,0.20739109,2635.2,2634.5,8.203]
[1749058587533,0.20739109,2635.2,2634.6,8.186]
[1749058588732,0.20739109,2635.2,2634.7,8.229]
[1749058588899,0.20739109,2635.2,2634.6,8.186]
[1749058589109,0.20739109,2635.2,2634.7,8.227]
[1749058589730,0.20739109,2635.2,2634.6,8.186]
[1749058590097,1.3229,2635.1,2634.7,8.223]
[1749058590632,0.79,2635.0,2634.7,8.223]
[1749058590823,1.02202911,2635.0,2634.7,8.223]
[1749058591424,0.79,2635.0,2634.7,8.223]
[1749058593046,0.79,2635.0,2634.7,1.766]
[1749058593242,0.79,2635.0,2634.8,6.454]
[1749058593409,0.79,2635.0,2634.6,8.186]
[1749058593743,1.2673,2634.9,2634.7,1.766]
[1749058594042,7.96300937,2635.0,2634.7,1.766]
[1749058594043,19.54363094,2634.8,2634.7,1.766]
[1749058594550,0.55,2634.5,2633.1,0.02]
[1749058594843,1.2806,2634.2,2633.2,16.408]
[1749058595003,1.2806,2634.2,2633.1,0.02]
[1749058595004,7.17300937,2633.6,2633.1,0.02]
[1749058595206,1.2806,2633.5,2633.2,9.952]
[1749058595506,0.79,2633.4,2633.2,9.952]
[1749058595709,8.45360937,2633.3,2633.2,9.952]
[1749058595925,9.79360937,2633.3,2633.2,9.952]
[1749058596126,9.00360937,2633.3,2633.2,9.952]
[1749058596328,9.90397031,2633.3,2633.2,9.952]
[1749058596950,25.90397031,2633.3,2633.2,8.186]
[1749058597152,25.90397031,2633.3,2633.2,9.952]
[1749058597312,25.90397031,2633.3,2633.2,8.186]
[1749058597655,25.90397031,2633.3,2633.2,9.952]
[1749058597951,25.84817031,2633.3,2633.2,8.186]
[1749058598122,25.84817031,2633.3,2633.1,0.02]
[1749058598454,25.84817031,2633.3,2631.2,1.92023519]
[1749058598455,1.2302,2632.0,2631.5,8.188]
[1749058598623,0.55,2632.1,2631.6,1.767]
[1749058598624,0.55,2631.9,2631.6,1.767]
[1749058598827,1.2302,2631.4,2631.3,8.188]
[1749058599048,1.7802,2631.2,2629.5,8.76928375]
[1749058599242,4.33052094,2631.2,2631.1,1.787]
[1749058599750,4.33052094,2631.2,2631.1,0.02]
[1749058600114,4.33052094,2631.2,2631.1,1.787]
[1749058600334,11.50353031,2631.2,2631.1,1.787]
[1749058601154,12.20353031,2631.2,2631.1,1.787]
[1749058601309,12.51327467,2631.2,2631.1,1.787]
[1749058601678,12.51327467,2631.2,2629.8,4.417796]
[1749058601679,1.9302,2631.2,2629.8,4.417796]
[1749058601852,7.48275373,2631.0,2629.8,10.0]
[1749058602024,7.48275373,2630.7,2629.5,8.76928375]
[1749058602614,7.48275373,2630.8,2629.5,8.76928375]
[1749058602838,1.2302,2631.2,2629.7,9.602603]
[1749058603157,7.48275373,2630.9,2629.8,16.552]
[1749058603450,7.48275373,2630.6,2629.5,8.76928375]
[1749058603751,7.48275373,2630.6,2629.9,6.553]
[1749058604449,7.48275373,2630.8,2629.9,6.553]
[1749058605013,8.03275373,2631.1,2629.9,6.553]
[1749058605215,0.92629537,2631.0,2630.0,0.6553]
[1749058606560,1.3155,2630.4,2629.8,6.558]
[1749058607332,1.3155,2630.4,2629.9,6.558]
[1749058607563,1.3155,2630.4,2630.0,9.963]
[1749058608555,1.3155,2630.4,2629.5,8.76928375]
[1749058608865,7.48275373,2629.9,2629.6,9.963]
[1749058609058,7.93097487,2629.9,2629.6,9.963]
[1749058609254,7.48275373,2629.9,2629.6,9.963]
[1749058609488,1.3155,2630.4,2629.6,9.963]
[1749058609489,7.48275373,2630.2,2629.6,9.963]
[1749058609830,1.3155,2630.4,2629.6,9.963]
[1749058610432,1.3155,2630.4,2629.7,8.333]
[1749058610636,2.25032537,2630.4,2629.7,8.333]
[1749058611972,2.25032537,2630.4,2629.8,1.769]
[1749058612267,2.25032537,2630.4,2629.9,1.769]
[1749058612456,0.93482537,2630.4,2630.0,1.769]
[1749058612655,7.48275373,2630.5,2630.0,1.769]
[1749058612857,1.2078,2630.8,2630.0,1.769]
[1749058613083,7.48275373,2631.2,2630.0,1.769]
[1749058613285,7.48275373,2631.2,2630.1,8.328]
[1749058613286,1.2078,2631.1,2630.1,8.328]
[1749058613471,1.2078,2631.5,2630.2,8.328]
[1749058613799,1.2078,2631.5,2630.3,2.6018]
[1749058613800,7.48275373,2631.4,2630.3,2.6018]
[1749058614093,1.52396661,2631.5,2630.4,2.781381]
[1749058614295,0.02,2630.9,2630.4,2.781381]
[1749058615084,0.02,2630.9,2630.5,8.331]
[1749058615396,7.48275373,2630.8,2630.6,1.769]
[1749058615556,8.2330291,2630.8,2630.7,1.769]
[1749058616197,0.02,2630.9,2630.7,1.769]
[1749058616568,0.02,2630.9,2629.6,1.90138029]
[1749058616774,0.02,2630.9,2629.8,16.0]
[1749058616974,0.02,2630.9,2630.0,10.0]
[1749058617188,0.02,2630.9,2629.8,16.0]
[1749058617371,0.02,2630.9,2630.2,16.0]
[1749058619557,0.02,2630.9,2630.3,6.559]
[1749058620091,0.02,2630.9,2630.2,16.0]
[1749058620258,7.48275373,2630.7,2629.9,8.198]
[1749058620477,7.48275373,2630.4,2630.0,1.822]
[1749058620704,7.48275373,2630.4,2629.9,8.198]
[1749058620705,7.43275373,2630.4,2629.9,8.198]
[1749058620860,7.43275373,2630.4,2630.0,1.822]
[1749058621056,7.43275373,2630.4,2629.9,8.198]
[1749058621275,7.43275373,2630.4,2630.0,1.822]
[1749058621499,0.74327537,2630.3,2630.0,1.822]
[1749058621804,7.43275373,2630.4,2630.0,1.822]
[1749058622964,0.87525537,2630.6,2630.0,1.822]
[1749058623480,1.2698,2630.8,2630.0,1.822]
[1749058624100,1.2698,2630.8,2630.1,8.382]
[1749058624318,0.02,2630.9,2630.2,16.0]
[1749058624616,0.02,2630.9,2630.3,19.757899]
[1749058624909,0.02,2630.9,2630.3,14.937466]
[1749058625129,0.02,2630.9,2630.2,16.0]
[1749058625287,7.50275373,2630.9,2630.0,16.0]
[1749058625496,7.48275373,2630.6,2630.1,1.822]
[1749058625692,7.48275373,2630.6,2630.1,8.393]
[1749058625893,0.74827537,2630.5,2630.1,8.393]
[1749058626622,0.74827537,2630.5,2630.2,8.389]
[1749058626818,0.74827537,2630.5,2630.2,1.822]
[1749058627018,0.74827537,2630.5,2630.2,8.388]
[1749058627347,8.71345373,2630.3,2630.2,1.822]
[1749058627486,9.65962664,2630.3,2630.2,1.822]
[1749058627999,9.65962664,2630.3,2629.9,8.198]
[1749058628205,9.65962664,2630.3,2630.2,1.822]
[1749058629098,10.0158063,2630.3,2630.2,1.822]
[1749058630013,1.2777,2630.2,2629.9,8.198]
[1749058630323,1.00628063,2630.1,2630.0,1.822]
[1749058630531,1.2777,2630.2,2630.0,1.822]
[1749058631423,7.48275373,2630.1,2630.0,1.822]
[1749058631587,1.2777,2630.2,2630.0,1.822]
[1749058631788,7.48275373,2630.1,2629.9,8.198]
[1749058631984,7.48275373,2630.1,2630.0,1.822]
[1749058632288,8.3587991,2630.1,2630.0,1.822]
[1749058633196,9.0587991,2630.1,2629.9,8.198]
[1749058633397,9.6087991,2630.1,2630.0,1.822]
[1749058634186,9.6087991,2630.1,2629.9,8.198]
[1749058634425,9.6087991,2630.1,2630.0,1.822]
[1749058635129,10.8694991,2630.1,2630.0,1.822]
[1749058635734,10.3194991,2630.1,2630.0,1.822]
[1749058636230,1.49,2630.1,2630.0,1.822]
[1749058636445,0.79,2630.1,2630.0,1.822]
[1749058636649,0.79,2630.7,2630.0,1.822]
[1749058636950,0.02,2630.9,2630.1,13.457342]
[1749058637157,0.02,2630.9,2630.2,10.0]
[1749058637292,0.02,2630.9,2630.3,11.4722307]
[1749058637493,0.02,2630.9,2630.4,10.023]
[1749058637716,0.02,2630.9,2630.5,22.547]
[1749058637916,0.02,2630.9,2630.6,16.0]
[1749058638092,0.02,2630.9,2630.5,22.547]
[1749058638295,0.02,2630.9,2630.6,17.569236]
[1749058639461,0.02,2630.9,2630.6,1.569236]
[1749058639630,0.02,2630.9,2630.7,1.822]
[1749058639813,0.02,2630.9,2630.5,16.0]
[1749058640013,0.02,2630.9,2630.6,8.377]
[1749058640651,0.02,2630.9,2630.4,8.201]
[1749058640853,0.02,2630.9,2630.7,1.822]
[1749058641014,7.48275373,2630.8,2630.6,6.551]
[1749058641214,8.2330291,2630.8,2630.7,1.822]
[1749058641809,0.75027537,2630.8,2630.7,1.822]
[1749058642025,0.02,2630.9,2630.7,1.822]
[1749058643550,0.02,2630.9,2630.8,8.37]
[1749058645073,0.02,2630.9,2630.4,8.201]
[1749058645288,0.02,2630.9,2630.8,8.365]
[1749058645941,0.02,2630.9,2630.4,8.201]
[1749058646135,0.02,2630.9,2630.5,9.1851]
[1749058646837,0.02,2630.9,2630.5,0.8221]
[1749058647037,0.02,2630.9,2630.6,8.357]
[1749058647451,0.02,2630.9,2630.7,8.199]
[1749058648070,0.02,2630.9,2630.8,8.355]
[1749058648295,0.02,2630.9,2630.8,8.354]
[1749058648490,0.02,2630.9,2630.8,8.353]
[1749058649300,0.02,2630.9,2630.7,8.199]
[1749058649470,0.02,2630.9,2630.8,1.802]
[1749058649865,0.02,2630.9,2630.8,8.328]
[1749058651580,0.02,2630.9,2630.8,8.32]
[1749058651781,0.02,2630.9,2630.8,1.802]
[1749058651983,0.02,2630.9,2630.7,8.199]
[1749058652287,2.06127537,2630.9,2630.8,1.802]
[1749058653079,0.77027537,2630.9,2630.8,1.802]
[1749058653265,0.02,2630.9,2630.8,1.802]
[1749058654481,0.02,2630.9,2630.8,8.327]
[1749058654812,0.02,2630.9,2630.7,8.199]
[1749058655198,0.02,2630.9,2630.8,8.324]
[1749058655385,0.02,2630.9,2630.7,8.199]
[1749058655590,0.77027537,2630.9,2630.8,1.802]
[1749058655788,1.99027537,2630.9,2630.8,1.802]
[1749058658004,1.24,2630.9,2630.8,1.802]
[1749058658410,1.24,2630.9,2630.7,8.199]
[1749058658794,1.24,2630.9,2630.8,1.802]
[1749058659600,1.94,2630.9,2630.8,1.802]
[1749058660397,1.24,2630.9,2630.8,1.802]
[1749058660615,2.11227537,2630.9,2630.8,1.802]
[1749058661617,0.02,2630.9,2630.8,1.802]
[1749058662534,0.02,2630.9,2630.8,8.32]
[1749058664843,0.02,2630.9,2630.8,1.802]
[1749058665201,7.50275373,2630.9,2630.8,1.802]
[1749058666201,7.50275373,2630.9,2630.7,8.199]
[1749058666415,7.50275373,2630.9,2630.8,1.802]
[1749058669811,1.3273,2630.4,2630.3,0.02]
[1749058669971,8.81005373,2630.4,2630.3,10.02]
[1749058670173,9.60005373,2630.4,2630.3,1.802]
[1749058671472,25.60005373,2630.4,2628.9,0.51]
[1749058671815,2.56000537,2630.3,2629.0,8.297]
[1749058672019,2.56000537,2630.3,2628.6,20.198593]
[1749058672168,0.79,2630.2,2628.9,16.0]
[1749058672374,0.79,2630.2,2629.1,10.0]
[1749058672702,7.48275373,2630.1,2628.4,19.70293229]
[1749058672900,7.81775427,2630.1,2628.7,20.198593]
[1749058673108,7.81775427,2630.1,2628.6,16.084494]
[1749058673327,0.79,2630.0,2628.8,14.091048]
[1749058673472,0.79,2630.0,2628.9,10.0]
[1749058673675,0.79,2630.0,2629.0,1.07117347]
[1749058675481,0.79,2630.0,2629.1,6.491]
[1749058675901,1.3205,2629.9,2628.6,0.51]
[1749058676083,7.48275373,2629.7,2628.7,6.495]
[1749058676287,7.48275373,2629.7,2628.8,0.6495]
[1749058676483,1.271,2629.6,2628.3,16.0]
[1749058676718,1.271,2629.6,2628.5,4.537303]
[1749058676945,1.271,2629.6,2628.7,10.0]
[1749058677213,1.271,2629.6,2628.6,3.343564]
[1749058677510,1.271,2629.6,2628.7,10.002]
[1749058677689,1.271,2629.6,2628.8,1.3345564]
[1749058678518,1.3345,2629.9,2628.8,1.3345564]
[1749058678883,1.3345,2629.9,2628.9,8.288]
[1749058679207,7.21033362,2629.7,2628.9,8.288]
[1749058679774,7.21033362,2629.4,2628.7,8.2]
[1749058679973,8.05178698,2629.4,2628.8,8.259]
[1749058680277,7.21033362,2629.4,2628.8,8.259]
[1749058680614,7.21033362,2629.4,2628.9,8.261]
[1749058680829,7.21033362,2629.4,2629.0,1.776]
[1749058680830,1.2042,2629.3,2629.0,1.776]
[1749058682313,7.21033362,2629.1,2628.4,9.761]
[1749058682509,1.2042,2629.3,2628.5,9.977]
[1749058682712,1.2945,2630.0,2628.5,9.977]
[1749058682910,7.21033362,2629.9,2628.7,10.0]
[1749058683232,7.21033362,2629.6,2628.8,8.269]
[1749058683397,7.21033362,2629.6,2628.8,1.776]
[1749058683597,8.00136698,2629.6,2628.9,6.494]
[1749058683932,1.2945,2629.5,2629.0,6.492]
[1749058684117,1.2945,2629.5,2626.4,2.28277605]
[1749058684316,1.2945,2629.5,2627.8,32.10128434]
[1749058684317,24.50483362,2629.5,2627.8,32.10128434]
[1749058684520,24.50483362,2629.5,2628.0,30.198593]
[1749058684833,27.03442032,2629.5,2628.0,20.198593]
[1749058685031,27.03442032,2629.5,2628.0,22.10116998]
[1749058685197,27.03442032,2629.5,2627.8,1.90271699]
[1749058685198,7.21033362,2629.2,2627.7,1.90280473]
[1749058685395,7.21033362,2629.2,2628.2,9.895703]
[1749058686346,8.50483362,2629.5,2628.3,3.364773]
[1749058686498,0.9295867,2629.4,2628.3,6.8294773]
[1749058686698,0.02,2628.9,2628.3,0.3164773]
[1749058686998,0.02,2628.9,2628.1,9.035975]
[1749058687336,0.02,2628.9,2628.1,16.769895]
[1749058687642,0.02,2628.9,2628.3,10.229196]
[1749058687813,0.02,2628.9,2628.4,6.492]
[1749058688002,0.02,2628.9,2628.5,10.0]
[1749058688217,0.02,2628.9,2628.6,1.6492]
[1749058688423,0.02,2628.9,2628.4,6.492]
[1749058689167,0.02,2628.9,2628.5,6.49]
[1749058689488,0.02,2628.9,2628.6,6.492]
[1749058689818,0.02,2628.9,2628.7,8.267]
[1749058690827,0.02,2628.9,2628.8,2.107448]
[1749058691016,0.02,2628.9,2628.8,3.1448928]
[1749058691857,0.02,2628.9,2628.8,19.1448928]
[1749058692256,0.02,2628.9,2628.8,21.59690132]
[1749058693070,0.00051593,2628.9,2628.8,21.59690132]
[1749058693272,0.02,2629.9,2629.5,16.0]
[1749058693437,0.02,2629.9,2629.6,8.4720219]
[1749058693634,0.02,2629.9,2629.6,6.488]
[1749058694047,0.02,2629.9,2629.7,4.258905]
[1749058694366,0.02,2630.9,2629.8,16.0]
[1749058694548,0.02,2630.9,2630.2,16.0]
[1749058694862,0.02,2630.9,2630.3,16.0]
[1749058695051,0.02,2630.9,2630.0,16.0]
[1749058695252,8.53303362,2630.8,2629.8,16.0]
[1749058695455,0.85530336,2630.7,2630.0,10.0]
[1749058695767,0.85530336,2630.7,2629.9,6.511]
[1749058697541,0.85530336,2630.7,2630.0,16.483]
[1749058698069,0.85530336,2630.7,2630.0,9.977]
[1749058698226,0.85530336,2630.7,2630.1,6.503]
[1749058698422,0.9388337,2630.6,2630.0,8.201]
[1749058698651,8.50743362,2630.5,2630.0,8.201]
[1749058698854,8.50743362,2630.5,2630.1,1.776]
[1749058700367,9.29743362,2630.5,2630.1,1.776]
[1749058700932,9.29743362,2630.5,2630.0,8.201]
[1749058701136,7.21033362,2630.2,2630.1,8.2]
[1749058701355,8.00033362,2630.2,2630.1,9.976]
[1749058701759,9.32083362,2630.2,2630.1,9.976]
[1749058701971,9.32083362,2630.2,2630.1,8.2]
[1749058702147,9.32083362,2630.2,2630.1,9.976]
[1749058702343,1.3205,2630.1,2628.3,0.3338]
[1749058702544,7.21033362,2629.2,2628.4,16.485]
[1749058702758,7.21033362,2629.4,2628.4,16.485]
[1749058702962,7.21033362,2629.3,2628.4,9.976]
[1749058703195,16.0,2630.1,2628.4,9.976]
[1749058703196,7.21033362,2629.0,2628.4,8.2]
[1749058703335,2.14273336,2628.9,2628.5,8.284]
[1749058703735,2.14273336,2628.9,2628.6,1.776]
[1749058704070,1.4217,2628.9,2628.4,8.2]
[1749058704271,1.4217,2628.9,2628.5,8.289]
[1749058704777,1.4217,2628.9,2628.4,8.2]
[1749058705074,1.4217,2628.9,2628.5,8.288]
[1749058705636,0.55,2629.8,2628.5,8.288]
[1749058705637,1.4217,2629.6,2628.5,10.2706]
[1749058706073,1.4217,2629.4,2628.6,8.29]
[1749058707554,1.4217,2629.4,2628.8,0.3338]
[1749058708081,1.3585,2630.1,2628.9,10.0]
[1749058708281,1.3585,2629.2,2629.0,10.069]